Cogmind - Beta 15 @@@ ROGUE MODE // 2025.06.20 @ 23:22:01 Player: CheifClapdad Result: Destroyed by Autobeam Turret with Autobeam Performance ------------- Evolutions (0) 0 Regions Visited (2) 400 Robots Destroyed (17) 85 Value Destroyed (281) 281 Prototype IDs (0) 0 Alien Tech Used (0) 0 Bonus (0) 0 TOTAL SCORE: 766 Bonus ------- None Cogmind --------- Core Integrity 0/250 Matter 290/300 Energy 98/100 System Corruption 0% Temperature Cool (12) Movement Rolling (80) Location -10/Subcaves Parts ------- > --- POWER (1) -------- (None) > --- PROPULSION (2) --- Wheel Wheel > --- UTILITY (2) ------ Scrap Shield > --- WEAPON (2) ------- Small Laser > --- INVENTORY (5) ---- Ion Engine Improved Treads Improved Treads High-capacity Matter Pod (200) Improved Terrain Scanner Peak State ------------ > --- POWER ------------ Ion Engine > --- PROPULSION ------- Light Treads Wheel > --- UTILITY ---------- Small Storage Unit > --- WEAPON ----------- Small Laser Light Assault Rifle > --- INVENTORY -------- Ion Engine Light Treads Improved Treads Improved Treads Improved Treads Improved Treads Wheel [Rating: 7] Favorites ----------- Power Ion Engine Engine Ion Engine Propulsion Wheel Treads Light Treads Wheel Wheel Utility Small Storage Unit Storage Small Storage Unit Protection Scrap Shield Weapon Small Laser Energy Gun Small Laser Ballistic Gun Light Assault Rifle Build | -11 -10 -10 ------- Run | Yrd Mat Sub Slots Evolved . | . . . Power . | . . . Propulsion . | . . . Utility . | . . . Weapon . | . . . Parts Attached 12 | 6 4 2 Power 1 | 1 . . Engine 1 | 1 . . Core . | . . . Reactor . | . . . Propulsion 5 | 2 2 1 Treads 2 | 1 1 . Leg . | . . . Wheel 3 | 1 1 1 Hover . | . . . Flight . | . . . Utility 2 | 1 . 1 Device . | . . . Storage 1 | 1 . . Processor . | . . . Hackware . | . . . Protection 1 | . . 1 Artifact . | . . . Weapon 4 | 2 2 . Energy Gun 2 | 1 1 . Energy Cannon . | . . . Ballistic Gun 2 | 1 1 . Ballistic Cannon . | . . . Launcher . | . . . Special Weapon . | . . . Impact Weapon . | . . . Slashing Weapon . | . . . Piercing Weapon . | . . . Special Melee Weapon . | . . . Unidentified Prototypes . | . . . Parts Lost 7 | . 5 2 Power 1 | . 1 . Propulsion 3 | . 2 1 Utility . | . . . Weapon 3 | . 2 1 Highest Loss Streak 2 | . 2 2 To Critical Strikes . | . . . Average Backups 6 | 1 7 5 Power . | . 1 1 Propulsion 3 | . 5 2 Utility 1 | . . 2 Weapon . | . . . Tool/Special . | . . . Unused Backups 7 | . 1 6 Power 1 | . . 1 Propulsion 4 | . 1 3 Utility 2 | . . 2 Weapon . | . . . Tool/Special . | . . . Average Slot Usage (%) 63 | . 67 60 Engine 2 | . 4 . Treads 8 | . 14 3 Wheel 18 | . 12 23 Storage 11 | . 14 8 Protection 2 | . . 5 Energy Gun 12 | . 7 17 Ballistic Gun 6 | . 13 . Peak Build Rating 7 | 6 7 7 Average Rating 5 | 5 5 6 On Entrance 4 | . 6 7 Naked Turns . | . . . Heaviest Build 19 | 12 12 19 Greatest Support 23 | 20 23 20 Greatest Overweight (x) 1 | . 1 . Average Overweight (x) . | . . . Largest Inventory Capacity 8 | 8 8 8 Average Capacity 7 | 7 8 6 Most Carried 8 | 3 8 8 Average Carried 6 | 1 7 5 Final Capacity 8 | 8 8 5 Final Carried 7 | 3 7 5 Class Distribution -------------------- 100% | Mutant Dominant Class ---------------- Mutant | -10/Materials Mutant | -10/Subcaves Resources | -11 -10 -10 ----------- Run | Yrd Mat Sub Matter Collected 586 | 207 369 10 Remotely . | . . . Salvage Created 386 | . 342 44 Parts 33 | . 29 4 Haulers Intercepted . | . . . Recyclers Shooed . | . . . Parts Field Recycled . | . . . Retrieved Matter . | . . . Parts Self-Destructed 9 | . . 9 Prevented . | . . . Kills | -11 -10 -10 ------- Run | Yrd Mat Sub Combat Hostiles Destroyed 14 | . 11 3 Guns 14 | . 11 3 Classes Destroyed 5 | . 5 . Worker 1 | . 1 . Tunneler 1 | . 1 . Mechanic 1 | . 1 . Swarmer 9 | . 6 3 Grunt 5 | . 5 . Best Kill Streak 8 | . 8 3 Combat Bots Only 4 | . 4 3 Max Kills in Single Turn 2 | . 1 2 Gunslinging 1 | . . 1 Exploded . | . . . Melee . | . . . Uniques/NPCs Destroyed . | . . . Combat | -11 -10 -10 -------- Run | Yrd Mat Sub Hostile Shots Fired 151 | . 121 30 Missed 46 | . 34 12 Hits 105 | . 87 18 Projectile 105 | . 87 18 Damage Taken 956 | . 816 140 Core 252 | . 214 38 Absorbed by Shields . | . . . Core Remaining (%) 100 | 100 . . Volleys Fired 75 | . 66 9 Largest 2 | . 2 2 Hottest 80 | . 60 80 Shots Fired 111 | . 98 13 Gun 111 | . 98 13 Cannon . | . . . Launcher . | . . . Special . | . . . Kinetic 66 | . 66 . Thermal 45 | . 32 13 Explosive . | . . . Electromagnetic . | . . . Robot Hit Streak 7 | . 7 4 Robot Miss Streak 4 | . 3 4 Penetration Max . | . . . Secondary Targets 4 | . 3 1 Max Gunslinging Chain 1 | . 1 1 Shots Hit Robots 68 | . 61 7 Core Hits 26 | . 23 3 Critical Kills . | . . . Critical Parts Destroyed . | . . . Critical Strikes . | . . . Melee Attacks . | . . . Impact . | . . . Slashing . | . . . Piercing . | . . . Sneak Attacks . | . . . Combat Hostiles . | . . . Follow-up Attacks . | . . . Damage Inflicted 649 | . 571 78 Guns 649 | . 571 78 Cannons . | . . . Explosions . | . . . Melee . | . . . Ramming . | . . . Kinetic 353 | . 353 . Thermal 296 | . 218 78 Explosive . | . . . Electromagnetic . | . . . Impact . | . . . Slashing . | . . . Piercing . | . . . Highest Corruption . | . . . Average Corruption . | . . . Corruption Purged . | . . . Corruption Blocked . | . . . Overload Shots . | . . . Overflow Damage . | . . . Projectiles . | . . . Explosions . | . . . Melee . | . . . Knockbacks . | . . . Impact . | . . . Kinetic . | . . . Secondary . | . . . Self-Inflicted Damage . | . . . Shots . | . . . Rammed . | . . . Targets Rammed . | . . . Kicked . | . . . Crushed . | . . . Highest Temperature 115 | . 115 7 Average Temperature 39 | . 39 7 Received Heat Transfer 264 | . 234 30 Siege Activations . | . . . Martial Activations . | . . . Shielding Activations . | . . . Robots Disrupted . | . . . Combat Hostiles . | . . . Robots Corrupted . | . . . Combat Hostiles . | . . . Parts Fried . | . . . Impact Corruptions . | . . . Robots Melted . | . . . Combat Hostiles . | . . . Parts Melted 1 | . 1 . Heat Transferred 675 | . 500 175 Parts Sabotaged . | . . . Parts Stolen . | . . . Parts Stripped . | . . . Power Chain Reactions . | . . . Alert | -11 -10 -10 ------- Run | Yrd Mat Sub Maximum Alert Level . | . . . Low Security (%) 100 | 100 100 . Level 1 . | . . . Level 2 . | . . . Level 3 . | . . . Level 4 . | . . . Level 5 . | . . . High Security . | . . . Max Security . | . . . Peak Influence 135 | . 135 . Initial . | . . . Average 57 | . 68 . Influence Increases 420 | . 350 70 Destroy 0b10 Robot/C 280 | . 220 60 Destroy 0b10 Robot/NC 15 | . 15 . Destroy Leader 50 | . 40 10 Lose Combat Pursuer 75 | . 75 . Influence Decreases 420 | . 232 188 Entered New Map 58 | . . 58 Time Decay 302 | . 182 120 Lost Part 60 | . 50 10 Squads Dispatched 3 | . 3 . Investigation . | . . . Extermination . | . . . Reinforcement 3 | . 3 . Assault . | . . . Garrison . | . . . Intercept . | . . . Searches Triggered . | . . . Construction Impeded . | . . . Haulers Reinforced . | . . . Active Scanning Responses . | . . . Cargo Convoy Interrupts . | . . . Stealth | -11 -10 -10 --------- Run | Yrd Mat Sub Distress Signals 1 | . 1 . Communications Jammed . | . . . Distress Signals . | . . . Times Spotted 35 | . 26 9 Peak Tracking Total 7 | . 7 6 Tactical Retreats 3 | . 3 . Traps | -11 -10 -10 ------- Run | Yrd Mat Sub Traps Triggered 2 | . 2 . Indirectly . | . . . Trap Hack Attempts . | . . . Triggered . | . . . Disarmed . | . . . Reprogrammed . | . . . Reused . | . . . Traps Extracted . | . . . Installed . | . . . Triggered . | . . . Machines | -11 -10 -10 ---------- Run | Yrd Mat Sub Machines Disabled . | . . . Max in Single Turn . | . . . Machines Repaired . | . . . Machines Dismantled . | . . . Machines Sabotaged . | . . . Overloaded Fab Kills . | . . . Hacking | -11 -10 -10 --------- Run | Yrd Mat Sub Machines Accessed . | . . . Terminals . | . . . Fabricators . | . . . Repair Stations . | . . . Recycling Units . | . . . Scanalyzers . | . . . Garrison Access . | . . . Total Hacks . | . . . Successful . | . . . Failed . | . . . Catastrophic . | . . . Database Lockouts . | . . . Manual . | . . . Terminals . | . . . Fabricators . | . . . Repair Stations . | . . . Recycling Units . | . . . Scanalyzers . | . . . Garrison Access . | . . . Terminal Hacks . | . . . Fabricator Hacks . | . . . Repair Station Hacks . | . . . Recycling Unit Hacks . | . . . Scanalyzer . | . . . Garrison Access Hacks . | . . . Unauthorized Hacks . | . . . Terminals . | . . . Fabricators . | . . . Repair Stations . | . . . Recycling Units . | . . . Scanalyzers . | . . . Garrison Access . | . . . Data Cores Recovered . | . . . Used . | . . . Hacking Detections . | . . . Full Trace Events . | . . . Feedback Events . | . . . Feedback Blocked . | . . . Robot Schematics Acquired . | . . . Robots Built . | . . . Authchips . | . . . Time . | . . . Total Robot Build Rating . | . . . Part Schematics Acquired . | . . . Parts Built . | . . . Authchips . | . . . Time . | . . . Total Part Build Rating . | . . . Parts Repaired . | . . . Time . | . . . Parts Recycled . | . . . Recycled Matter . | . . . Retrieved Matter . | . . . Retrieved Components . | . . . Parts Scanalyzed . | . . . Part Schematics Acquired . | . . . Parts Damaged . | . . . Bothacking | -11 -10 -10 ------------ Run | Yrd Mat Sub Used RIF Installer . | . . . Robots Hacked . | . . . Non-combat . | . . . Combat . | . . . Robot Hacks Applied . | . . . Relay Couplers Released . | . . . Fabnet Peak Effective % . | . . . Robots Rewired . | . . . Allies Hacked . | . . . Hacks Repelled . | . . . Allies | -11 -10 -10 -------- Run | Yrd Mat Sub Total Allies . | . . . Largest Group . | . . . Highest-Rated Group . | . . . Highest-Rated Ally . | . . . Total Orders . | . . . Ally Attacks . | . . . Total Damage . | . . . Kills . | . . . Allies Corrupted . | . . . Allies Melted . | . . . Intel | -11 -10 -10 ------- Run | Yrd Mat Sub Active Infowar (turns) . | . . . Robot Analysis Total . | . . . Derelict Logs Recovered . | . . . Drone Launches . | . . . Drone Recoveries . | . . . Exploration | -11 -10 -10 ------------- Run | Yrd Mat Sub Turns Passed 1291 | 114 576 601 Spaces Moved 1158 | 77 365 716 Core 15 | 15 . . Treads 144 | 57 87 . Legs . | . . . Wheels 999 | 5 278 716 Hover . | . . . Flight . | . . . Fastest Speed 50 | 50 80 80 Average Speed 89 | 133 99 80 Slowest Speed 160 | 160 160 80 Overloaded Moves . | . . . Propulsion Burnouts . | . . . Robots Hopped . | . . . Potential Cave-ins . | . . . Cave-ins Triggered . | . . . Exploration Rate (%) 35 | 5 66 36 Regions Visited 2 Branch Regions 1 Pre-discovered Areas . | . . . Known Exits Taken . | . . . Unknown Exits Taken 2 | 1 1 . Scrap Searched . | . . . Spaces Dug . | . . . Terrain Destroyed . | . . . Melee . | . . . Projectile . | . . . AOE . | . . . Terrain Rammed . | . . . Walls Destroyed . | . . . Machines Disabled . | . . . Actions | -11 -10 -10 --------- Run | Yrd Mat Sub Total 1307 | 85 489 733 Wait 44 | . 44 . Move 1156 | 76 364 716 Hop . | . . . Pick Up 12 | 3 6 3 Fast Attach 10 | 6 4 . Attach 4 | . 2 2 Detach . | . . . Swap 2 | . 2 . Drop 4 | . 1 3 Fire 75 | . 66 9 Melee . | . . . Ram . | . . . Kick . | . . . Crush . | . . . Escape Stasis . | . . . Rewire . | . . . Trap . | . . . Miscellaneous . | . . . Route ------- -11/Scrapyard -10/Materials (discovered 2 exits: [*Mat] / [*Sub]) -10/Subcaves History --------- Turn | Location | Event 8 | -11/Scrapyard | Discovered new exit (range 15) 115 | -11/Scrapyard | Entered Materials 306 | -10/Materials | Build established: Mutant 403 | -10/Materials | Discovered new exit (range 12) 599 | -10/Materials | Core integrity fell below 50% 632 | -10/Materials | Core integrity fell below 20% 678 | -10/Materials | Discovered new exit (range 10) 691 | -10/Materials | Entered Subcaves 692 | -10/Subcaves | Approached by a straggling Scientist 803 | -10/Subcaves | Shifting Twisted Machinery released Spk. Treads 1031 | -10/Subcaves | Shifting Twisted Machinery released Scrap Shield 1292 | -10/Subcaves | Destroyed by Autobeam Turret with Autobeam Last Messages --------------- repair. 00859_ Subatomizers dissect the Lgt. Ion Engine. 00862_ Lgt. Ion Engine fries itself beyond repair. 00866_ Acquired 10 matter. 00872_ Flight Unit fries itself beyond repair. RA-P11(c): "I think it's somewhere east of here" Scrap Shield falls loose from the Twisted Machinery. 01043_ Acquired Scrap Shield. 01044_ Dropped Imp. Treads. 01045_ Dropped Sml. Storage Unit. RA-P11(c): "I think it's somewhere east of here" 01048_ Acquired Imp. Treads. 01056_ Subatomizers dissect the Sml. Storage Unit. RA-P11(c): "I think it's somewhere east of here" RA-P11(c): "I think it's somewhere northeast of here" Map ----- +----------------------------------------------------+ | ???????????????????????????????????????????? | | ???????????????????????????????????????????? | | ???????????????????????????????????????????? | | ???????????????????????????????????????????? | | ???????????????????????????????????????????? | | ???????????????????????????????????????????? | | ???????????????????????????????????????????? | | ???????????????????????????????????????????? | | ???????????????????????????????????????????? | | ???????????????????????????????????????????? | | ?????????????????????????? ????????????????? | | ?????????????????????????? ????????????????? | | ?????????????????????????? ????????????????? | | ?????????????????????????? ###?????????????? | | ?????????????????????????? #?????????????? | | ?????????????????????????? #?????????????? | | ?????????????????????????? ??????????????? | | ????????????????????????## ??????????????? | | ????????????????????????# ??????????????? | | ???????????????????????? ???????????????? | | ???????????????????????? ???????????????? | | ???????????????????????? #???????????????? | | ????????????????????????# ##??????????????? | | ??????????? ???????????? #??????????????? | | ??????????" ######### #???????????????? | | ???????????"t ss @ ##??????????????? | | ?????????? #??????????????? | | ???????????"t ss ##??????????????? | | ??????????" ######### ##??????????????? | | ??????????? ??????# # #??????????????? | | ???????????????????# ##??????????????? | | ???????########????# #???????????????? | | ##????## ##??## # ##???????????????? | | ##???# #### ####????????????????? | | #????# ### ##???????????????????? | | ##???# #???????????????????? | | ##### #???????????????????? | | #####????????????????? | | #????????????????? | | #???????????????? | | #??????????????? | | ### ## #??????????????? | | #?## ### ## #??????????????? | | ???### ## ##?# #??????????????? | | ?????## ##???### ##??????????????? | | ??????# ##???????###???????????????? | | ?????# #####??????????????????????????? | | ????? #####??????????????????????????????? | | ???? #??????????????????????????????????? | | ??? #??????????????????????????????????? | +----------------------------------------------------+ Best States ------------- Heat Dissipation 25 Energy Generation 10 Energy Capacity 250 Matter Stores 300 Matter Capacity 300 Sight Range 16 Terrain Scan Density 10 Armor Coverage 800 Evasion (%) 50 Recoil Reduction 1 Item Schematics ----------------- None Robot Schematics ------------------ None Fabricated ------------ Nothing Repaired ---------- Nothing Alien Tech Used ----------------- None Achievements -------------- None Challenges ------------ None Game ------ Seed AerolevSubatomicInitializer Manual? 0 Play Time 00:07:45 Cumulative 82.7 hours Start 2025.06.20 @ 23:13:49 End 2025.06.20 @ 23:22:01 Sessions 1 Manual Loads 0 Difficulty Rogue Special Mode None Game No. 111 Rogue 111 Adventurer 0 Explorer 0 Win Type - Total 1 Types 1/0/0/0/0/0/0/0/0/0 Lore% 35 Gallery% 47 Achievement% 41 Wizard Run 0 Options --------- Layout 1 ASCII 0 Keyboard 0 Movement Arrows Keybinds 0 Fullscreen 1 Font 24/Smallcaps Map View 50x35 Zoom Use 0% Tactical HUD 1 Map Filters NONE Filters NONE Steam X RUN: 180c7723-be04-44b8-8af5-60aab9ae04b1